[Event "Belt Road Women 2019"]
[Site "Shaoxing"]
[Date "2019.07.11"]
[Round "4.13"]
[White "Pujari, Rucha"]
[Black "Hu, Yu A."]
[Result "1/2-1/2"]
[ECO "D02"]
[WhiteElo "2268"]
[BlackElo "2095"]
[Annotator "NA"]
[PlyCount "62"]
[EventDate "2019.07.08"]
[EventType "swiss"]
[EventCountry "CHN"]
[SourceTitle "playchess.com"]
[Source "ChessBase"]
[SourceQuality "1"]
[TimeControl "5400+30"]

1. d4 {[%emt 0:23:01]} Nf6 2. Nf3 {[%emt 0:00:30]} d5 3. g3 {[%emt 0:00:30]} e6 4. Bg2 {[%emt 0:00:30]} Be7 5. O-O {[%emt 0:00:30]} O-O 6. b3 {[%emt 0:00:30]} c5 7. Bb2 {[%emt 0:00:30]} Nc6 8. Nbd2 {[%emt 0:00:30]} Qb6 9. e3 {[%emt 0:00:30]} Rd8 10. Qe2 {[%emt 0:00:30]} a5 11. a3 {[%emt 0:00:30]} a4 {[%emt 0:18:02]} 12. dxc5 {[%emt 0:00:30]} Qxc5 {[%emt 0:00:30]} 13. Rac1 {[%emt 0:00:30]} axb3 {[%emt 0:00:30]} 14. cxb3 {[%emt 0:00:30]} Qb6 {[%emt 0:00:30]} 15. b4 {[%emt 0:00:30]} Bd7 {[%emt 0:00:30]} 16. Rfe1 {[%emt 0:00:30]} Na7 {[%emt 0:00:30]} 17. Bd4 {[%emt 0:00:30]} Qb5 {[%emt 0:00:30]} 18. Qd1 {[%emt 0:00:30]} Qa6 {[%emt 0:00:30]} 19. Bf1 {[%emt 0:00:30]} Bb5 {[%emt 0:00:30]} 20. Bb2 {[%emt 0:00:30]} Bxf1 {[%emt 0:00:30]} 21. Rxf1 {[%emt 0:00:30]} Nb5 {[%emt 0:00:30]} 22. Qb3 {[%emt 0:00:30]} Qa4 {[%emt 0:00:30]} 23. Qxa4 {[%emt 0:00:30]} Rxa4 {[%emt 0:00:30]} 24. Nb1 {[%emt 0:00:30]} Ne4 {[%emt 0:00:30]} 25. Nd4 {[%emt 0:00:30]} Ned6 {[%emt 0:00:30]} 26. Rc5 {[%emt 0:00:30]} Nxd4 {[%emt 0:00:30]} 27. Bxd4 {[%emt 0:00:30]} Bf8 {[%emt 0:00:30]} 28. Rfc1 {[%emt 0:00:30]} Nc4 {[%emt 0:00:30]} 29. Rb5 {[%emt 0:00:30]} Rd7 {[%emt 0:00:30]} 30. Rc3 {[%emt 0:00:30]} Nd6 {[%emt 0:00:30]} 31. Rb6 {[%emt 0:00:30]} Nc4 {[%emt 0:00:30]} 1/2-1/2

[Event "Belt Road Women 2019"]
[Site "Shaoxing"]
[Date "2019.07.11"]
[Round "4.14"]
[White "Yan, Tianqi"]
[Black "Zhang, Xiao"]
[Result "1/2-1/2"]
[ECO "B10"]
[WhiteElo "2034"]
[BlackElo "2259"]
[Annotator "NA"]
[PlyCount "113"]
[EventDate "2019.07.08"]
[EventType "swiss"]
[EventCountry "CHN"]
[SourceTitle "playchess.com"]
[Source "ChessBase"]
[SourceQuality "1"]
[TimeControl "5400+30"]

1. e4 {[%emt 0:00:00]} c6 {[%emt 0:00:00]} 2. c4 {[%emt 0:00:00]} d5 {[%emt 0:00:00]} 3. exd5 {[%emt 0:00:00]} cxd5 {[%emt 0:00:00]} 4. cxd5 {[%emt 0:00:00]} Nf6 {[%emt 0:01:28]} 5. Qa4+ {[%emt 0:00:48]} Bd7 {[%emt 0:00:40]} 6. Qb3 {[%emt 0:00:20]} Qc7 {[%emt 0:00:33]} 7. Nc3 {[%emt 0:00:26]} Na6 {[%emt 0:03:56]} 8. d4 {[%emt 0:01:38]} e6 {[%emt 0:03:23]} 9. dxe6 Bxe6 {[%emt 0:00:11]} 10. Bb5+ {[%emt 0:02:14]} Kd8 {[%emt 0:07:28]} 11. Qa4 {[%emt 0:04:02]} Nb4 {[%emt 0:01:41]} 12. a3 {[%emt 0:03:17]} Nbd5 {[%emt 0:00:26]} 13. Nge2 {[%emt 0:00:50]} Bd6 {[%emt 0:01:24]} 14. Bd3 {[%emt 0:05:51]} Nxc3 {[%emt 0:02:22]} 15. bxc3 {[%emt 0:01:27]} Bd5 {[%emt 0:00:35]} 16. f3 {[%emt 0:04:42]} Bxh2 {[%emt 0:06:53]} 17. c4 {[%emt 0:05:28]} Bc6 {[%emt 0:10:59]} 18. Qc2 {[%emt 0:00:36]} Bd6 {[%emt 0:02:11]} 19. Bg5 {[%emt 0:02:07]} Qa5+ {[%emt 0:03:50]} 20. Bd2 {[%emt 0:06:14]} Qc7 {[%emt 0:00:13]} 21. Kf2 {[%emt 0:02:55]} h6 {[%emt 0:05:32]} 22. Rhc1 {[%emt 0:11:42]} Rc8 {[%emt 0:03:50]} 23. Bb4 {[%emt 0:03:51]} Bf4 {[%emt 0:02:55]} 24. Bd2 {[%emt 0:05:05]} Bd6 {[%emt 0:03:42]} 25. Be3 {[%emt 0:04:04]} Re8 {[%emt 0:02:09]} 26. Bf5 {[%emt 0:11:44]} Qe7 {[%emt 0:06:16]} 27. Qd3 {[%emt 0:02:22]} Bd7 {[%emt 0:01:05]} 28. Bxd7 {[%emt 0:01:03]} Nxd7 {[%emt 0:04:20]} 29. g3 {[%emt 0:04:49]} Nb6 {[%emt 0:06:51]} 30. Bf4 {[%emt 0:01:14]} Bxf4 {[%emt 0:00:00]} 31. Nxf4 {[%emt 0:00:29]} g5 {[%emt 0:00:00]} 32. Ng2 {[%emt 0:01:47]} Rc6 {[%emt 0:04:18]} 33. Re1 {[%emt 0:02:48]} Re6 {[%emt 0:00:00]} 34. Rxe6 {[%emt 0:01:04]} Qxe6 {[%emt 0:00:00]} 35. d5 {[%emt 0:00:36]} Qc8 {[%emt 0:00:01]} 36. Rc1 {[%emt 0:02:55]} Qc5+ {[%emt 0:00:05]} 37. Kf1 {[%emt 0:00:06]} Kc7 {[%emt 0:01:37]} 38. Qc3 {[%emt 0:05:07]} Kb8 {[%emt 0:01:53]} 39. Qd3 {[%emt 0:01:57]} h5 {[%emt 0:01:54]} 40. Rc3 {[%emt 0:00:37]} Na4 {[%emt 0:01:41]} 41. Rb3 {[%emt 0:00:37]} Qd6 {[%emt 0:00:50]} 42. Rb4 {[%emt 0:01:34]} Nc5 {[%emt 0:00:20]} 43. Qd4 {[%emt 0:00:19]} Na6 {[%emt 0:00:40]} 44. Rb3 {[%emt 0:00:27]} Qxg3 {[%emt 0:00:57]} 45. c5 {[%emt 0:00:26]} Qe5 {[%emt 0:00:55]} 46. Qxe5+ {[%emt 0:00:56]} Rxe5 {[%emt 0:00:01]} 47. c6 {[%emt 0:00:06]} Nc5 {[%emt 0:01:17]} 48. Rc3 {[%emt 0:01:03]} Rxd5 {[%emt 0:00:57]} 49. cxb7 {[%emt 0:00:23]} f6 {[%emt 0:02:08]} 50. Ne3 {[%emt 0:00:16]} Re5 {[%emt 0:05:02]} 51. Nc4 {[%emt 0:00:22]} Re6 {[%emt 0:00:07]} 52. Na5 {[%emt 0:00:32]} Nxb7 {[%emt 0:01:00]} 53. Nc6+ {[%emt 0:00:04]} Ka8 {[%emt 0:00:12]} 54. Nd4 {[%emt 0:00:09]} Re8 {[%emt 0:00:05]} 55. Nb5 {[%emt 0:00:32]} Rf8 {[%emt 0:00:30]} 56. Nc7+ {[%emt 0:00:03]} Kb8 {[%emt 0:00:05]} 57. Na6+ {[%emt 0:00:03]} 1/2-1/2

[Event "Belt Road Women 2019"]
[Site "Shaoxing"]
[Date "2019.07.11"]
[Round "4.15"]
[White "Bai, Xue"]
[Black "Xu, Yuze"]
[Result "1/2-1/2"]
[ECO "B36"]
[WhiteElo "2029"]
[BlackElo "2083"]
[Annotator "NA"]
[PlyCount "56"]
[EventDate "2019.07.08"]
[EventType "swiss"]
[EventCountry "CHN"]
[SourceTitle "playchess.com"]
[Source "ChessBase"]
[SourceQuality "1"]
[TimeControl "5400+30"]

1. e4 {[%emt 0:00:00]} c5 {[%emt 0:00:00]} 2. Nf3 {[%emt 0:00:00]} Nc6 {[%emt 0:00:00]} 3. d4 {[%emt 0:00:00]} cxd4 {[%emt 0:00:00]} 4. Nxd4 {[%emt 0:00:00]} g6 {[%emt 0:00:00]} 5. c4 {[%emt 0:00:53]} Nf6 {[%emt 0:00:00]} 6. Nc3 {[%emt 0:00:06]} Nxd4 {[%emt 0:00:03]} 7. Qxd4 {[%emt 0:00:04]} d6 {[%emt 0:00:05]} 8. Be3 {[%emt 0:02:15]} Bg7 {[%emt 0:00:12]} 9. f3 {[%emt 0:01:35]} O-O {[%emt 0:00:10]} 10. Qd2 {[%emt 0:00:14]} a5 {[%emt 0:00:27]} 11. b3 {[%emt 0:02:05]} a4 {[%emt 0:02:58]} 12. b4 {[%emt 0:03:08]} Be6 {[%emt 0:02:47]} 13. Rc1 {[%emt 0:02:59]} Nd7 {[%emt 0:01:29]} 14. a3 {[%emt 0:04:37]} Nb6 {[%emt 0:04:05]} 15. Nd5 {[%emt 0:01:29]} Nxd5 {[%emt 0:00:14]} 16. exd5 {[%emt 0:03:09]} Bd7 {[%emt 0:02:59]} 17. Be2 {[%emt 0:01:57]} e6 {[%emt 0:00:26]} 18. dxe6 {[%emt 0:02:44]} Bxe6 {[%emt 0:00:13]} 19. O-O {[%emt 0:01:48]} d5 {[%emt 0:15:31]} 20. c5 {[%emt 0:03:50]} d4 {[%emt 0:07:52]} 21. Bf2 {[%emt 0:06:23]} Qd5 {[%emt 0:10:37]} 22. Bc4 {[%emt 0:07:53]} Qd7 {[%emt 0:01:39]} 23. Rfd1 {[%emt 0:02:53]} Rfd8 {[%emt 0:04:10]} 24. Bh4 {[%emt 0:08:06]} Rdc8 {[%emt 0:02:08]} 25. Bg3 {[%emt 0:04:03]} Re8 {[%emt 0:00:39]} 26. Bf2 {[%emt 0:01:10]} Red8 {[%emt 0:00:11]} 27. Qd3 {[%emt 0:03:48]} Bf5 {[%emt 0:00:55]} 28. Qd2 {[%emt 0:00:15]} Be6 {[%emt 0:00:06]} 1/2-1/2

[Event "Belt Road Women 2019"]
[Site "Shaoxing"]
[Date "2019.07.11"]
[Round "4.16"]
[White "Du, Yuxin"]
[Black "Zhou, Yafei"]
[Result "1-0"]
[ECO "C07"]
[WhiteElo "2015"]
[BlackElo "1720"]
[Annotator "NA"]
[PlyCount "86"]
[EventDate "2019.07.08"]
[EventType "swiss"]
[EventCountry "CHN"]
[SourceTitle "playchess.com"]
[Source "ChessBase"]
[SourceQuality "1"]
[TimeControl "5400+30"]

1. e4 {[%emt 0:00:00]} e6 {[%emt 0:00:00]} 2. d4 {[%emt 0:00:00]} d5 {[%emt 0:00:00]} 3. Nd2 {[%emt 0:00:42]} c5 {[%emt 0:00:00]} 4. exd5 {[%emt 0:00:09]} Qxd5 {[%emt 0:00:00]} 5. Ngf3 {[%emt 0:00:12]} cxd4 {[%emt 0:00:07]} 6. Bc4 {[%emt 0:00:10]} Qd8 {[%emt 0:00:14]} 7. O-O {[%emt 0:01:06]} Nc6 {[%emt 0:00:08]} 8. Nb3 {[%emt 0:00:21]} a6 {[%emt 0:00:22]} 9. Nbxd4 {[%emt 0:00:43]} Nxd4 {[%emt 0:00:09]} 10. Nxd4 {[%emt 0:00:07]} Qc7 {[%emt 0:00:08]} 11. Bb3 {[%emt 0:01:53]} Bd6 {[%emt 0:00:11]} 12. h3 {[%emt 0:03:49]} Ne7 {[%emt 0:01:47]} 13. c3 {[%emt 0:07:42]} O-O {[%emt 0:00:34]} 14. Qf3 {[%emt 0:10:54]} Rb8 {[%emt 0:05:57]} 15. Re1 {[%emt 0:15:52]} b5 {[%emt 0:13:52]} 16. Bg5 {[%emt 0:01:41]} Ng6 {[%emt 0:08:59]} 17. Rad1 {[%emt 0:15:54]} Bf4 {[%emt 0:09:07]} 18. Bxf4 {[%emt 0:01:39]} Qxf4 {[%emt 0:01:40]} 19. Qxf4 {[%emt 0:00:17]} Nxf4 {[%emt 0:00:06]} 20. Nc6 {[%emt 0:00:59]} Rb7 {[%emt 0:05:06]} 21. Rd4 {[%emt 0:03:18]} Rc7 {[%emt 0:08:33]} 22. Rxf4 {[%emt 0:02:04]} Rxc6 {[%emt 0:00:23]} 23. Rd4 {[%emt 0:00:18]} g6 {[%emt 0:02:21]} 24. Red1 {[%emt 0:01:37]} Rc7 {[%emt 0:02:45]} 25. Rd6 {[%emt 0:02:27]} Bb7 {[%emt 0:00:12]} 26. Rb6 {[%emt 0:00:52]} Rb8 {[%emt 0:02:39]} 27. Rdd6 {[%emt 0:00:50]} Kf8 {[%emt 0:01:42]} 28. a4 {[%emt 0:09:38]} Ke7 {[%emt 0:04:41]} 29. axb5 {[%emt 0:01:34]} axb5 {[%emt 0:00:15]} 30. Rd4 {[%emt 0:00:44]} Ra8 {[%emt 0:14:20]} 31. Rxb5 {[%emt 0:01:09]} Bc6 {[%emt 0:00:31]} 32. Rb6 {[%emt 0:04:50]} Ra1+ {[%emt 0:00:39]} 33. Kh2 {[%emt 0:01:26]} Re1 {[%emt 0:00:30]} 34. Rc4 {[%emt 0:01:37]} Kd7 {[%emt 0:11:32]} 35. Rbxc6 {[%emt 0:00:15]} Rxc6 {[%emt 0:01:02]} 36. Ba4 {[%emt 0:00:06]} Re2 {[%emt 0:01:26]} 37. Bxc6+ {[%emt 0:00:08]} Kd6 {[%emt 0:00:15]} 38. b4 {[%emt 0:00:09]} Rxf2 {[%emt 0:00:12]} 39. b5 {[%emt 0:00:23]} Rb2 {[%emt 0:00:09]} 40. Rb4 {[%emt 0:02:08]} Rxb4 {[%emt 0:01:05]} 41. cxb4 {[%emt 0:00:05]} e5 {[%emt 0:00:16]} 42. Be8 {[%emt 0:00:24]} f5 {[%emt 0:00:21]} 43. b6 {[%emt 0:00:17]} Kd5 {[%emt 0:00:30]} 1-0

[Event "Belt Road Women 2019"]
[Site "Shaoxing"]
[Date "2019.07.11"]
[Round "4.17"]
[White "Zhang, Yuxuan"]
[Black "Peng, Tianlu"]
[Result "1-0"]
[ECO "B92"]
[WhiteElo "1987"]
[BlackElo "1901"]
[Annotator "NA"]
[PlyCount "129"]
[EventDate "2019.07.08"]
[EventType "swiss"]
[EventCountry "CHN"]
[SourceTitle "playchess.com"]
[Source "ChessBase"]
[SourceQuality "1"]
[TimeControl "5400+30"]

1. e4 {[%emt 0:00:00]} c5 {[%emt 0:00:00]} 2. Nf3 {[%emt 0:00:00]} d6 {[%emt 0:00:00]} 3. d4 {[%emt 0:00:00]} cxd4 {[%emt 0:00:00]} 4. Nxd4 {[%emt 0:00:00]} Nf6 {[%emt 0:00:00]} 5. Nc3 {[%emt 0:00:02]} a6 {[%emt 0:00:05]} 6. Be2 {[%emt 0:00:06]} e5 {[%emt 0:00:06]} 7. Nf3 {[%emt 0:00:06]} Be7 {[%emt 0:00:05]} 8. Bg5 {[%emt 0:00:15]} Be6 {[%emt 0:00:31]} 9. Bxf6 {[%emt 0:00:22]} Bxf6 {[%emt 0:00:07]} 10. Nd5 {[%emt 0:00:05]} Nd7 {[%emt 0:01:14]} 11. b4 {[%emt 0:12:01]} O-O {[%emt 0:03:42]} 12. O-O {[%emt 0:02:52]} Rc8 {[%emt 0:01:00]} 13. c4 {[%emt 0:00:51]} g6 {[%emt 0:05:49]} 14. a4 {[%emt 0:05:51]} a5 {[%emt 0:09:00]} 15. Rb1 {[%emt 0:13:02]} axb4 {[%emt 0:02:09]} 16. Rxb4 {[%emt 0:00:06]} b6 {[%emt 0:09:19]} 17. Nxf6+ {[%emt 0:06:31]} Nxf6 {[%emt 0:00:22]} 18. Qd3 {[%emt 0:01:07]} Rc6 {[%emt 0:02:30]} 19. Ng5 {[%emt 0:05:17]} Bc8 {[%emt 0:08:16]} 20. Rd1 {[%emt 0:04:14]} h6 {[%emt 0:01:48]} 21. Nf3 {[%emt 0:00:45]} Qc7 {[%emt 0:01:41]} 22. Nd2 {[%emt 0:01:20]} Rd8 {[%emt 0:16:38]} 23. Nb1 {[%emt 0:02:20]} Ba6 {[%emt 0:07:27]} 24. Nc3 {[%emt 0:18:05]} Rc5 {[%emt 0:08:40]} 25. f3 {[%emt 0:06:04]} Kg7 {[%emt 0:06:51]} 26. Nb5 {[%emt 0:01:44]} Bxb5 {[%emt 0:01:43]} 27. axb5 {[%emt 0:00:05]} Nh5 {[%emt 0:05:06]} 28. g3 {[%emt 0:00:07]} Nf6 {[%emt 0:00:16]} 29. Ra4 {[%emt 0:00:09]} Ne8 {[%emt 0:02:55]} 30. Rda1 {[%emt 0:00:26]} Qe7 {[%emt 0:00:58]} 31. Ra6 {[%emt 0:03:25]} Rb8 {[%emt 0:00:18]} 32. Kf2 {[%emt 0:01:33]} Rb7 {[%emt 0:00:31]} 33. Rd1 {[%emt 0:00:32]} Rc8 {[%emt 0:02:53]} 34. Ra4 {[%emt 0:02:12]} Rd8 {[%emt 0:00:41]} 35. Qd5 {[%emt 0:01:02]} Qc7 {[%emt 0:00:53]} 36. Ra6 {[%emt 0:00:26]} Rd7 {[%emt 0:01:05]} 37. f4 {[%emt 0:02:11]} exf4 {[%emt 0:01:01]} 38. gxf4 {[%emt 0:00:17]} Qd8 {[%emt 0:00:52]} 39. Kg3 {[%emt 0:00:33]} Qe7 {[%emt 0:00:23]} 40. Bg4 {[%emt 0:01:39]} Nf6 {[%emt 0:00:48]} 41. Qd4 {[%emt 0:00:07]} Rdc7 {[%emt 0:00:20]} 42. Bf3 {[%emt 0:00:21]} Rb8 {[%emt 0:00:54]} 43. Re1 {[%emt 0:03:40]} Kh7 {[%emt 0:00:25]} 44. e5 {[%emt 0:00:59]} dxe5 {[%emt 0:00:29]} 45. Rxe5 {[%emt 0:00:05]} Qd7 {[%emt 0:00:34]} 46. Qxd7 {[%emt 0:01:37]} Rxd7 {[%emt 0:00:09]} 47. c5 {[%emt 0:00:05]} bxc5 {[%emt 0:00:18]} 48. Rxf6 {[%emt 0:00:08]} Rxb5 {[%emt 0:00:20]} 49. Rc6 {[%emt 0:00:05]} Rb4 {[%emt 0:00:26]} 50. Rexc5 {[%emt 0:06:00]} Rdd4 {[%emt 0:00:37]} 51. Rf6 {[%emt 0:00:07]} Kg7 {[%emt 0:00:43]} 52. Rcc6 {[%emt 0:00:11]} h5 {[%emt 0:00:31]} 53. Rcd6 {[%emt 0:01:29]} h4+ {[%emt 0:00:41]} 54. Kg4 {[%emt 0:00:21]} Rxd6 {[%emt 0:01:06]} 55. Rxd6 {[%emt 0:00:04]} f6 {[%emt 0:00:20]} 56. Bc6 {[%emt 0:02:37]} g5 {[%emt 0:00:29]} 57. Kh5 {[%emt 0:00:50]} Rxf4 {[%emt 0:00:16]} 58. Rd7+ {[%emt 0:00:16]} Kf8 {[%emt 0:00:57]} 59. Rb7 {[%emt 0:00:32]} Rc4 {[%emt 0:00:52]} 60. Bb5 {[%emt 0:00:05]} Rc5 {[%emt 0:00:38]} 61. Kg6 {[%emt 0:00:10]} g4 {[%emt 0:00:51]} 62. Kxf6 {[%emt 0:00:31]} Rc8 {[%emt 0:00:43]} 63. Bd7 {[%emt 0:00:51]} Ra8 {[%emt 0:00:29]} 64. Be6 {[%emt 0:00:09]} Ke8 {[%emt 0:00:37]} 65. Rh7 {[%emt 0:00:08]} 1-0

[Event "Belt Road Women 2019"]
[Site "Shaoxing"]
[Date "2019.07.12"]
[Round "5.5"]
[White "Tan, Zhongyi"]
[Black "Munkhzul, Turmunkh"]
[Result "1-0"]
[ECO "D35"]
[WhiteElo "2511"]
[BlackElo "2386"]
[Annotator "RC"]
[PlyCount "125"]
[EventDate "2019.07.08"]
[EventType "swiss"]
[EventCountry "CHN"]
[SourceTitle "playchess.com"]
[Source "ChessBase"]
[SourceQuality "1"]
[TimeControl "5400+30"]

1. d4 {[%emt 0:01:44]} Nf6 {[%emt 0:00:28]} 2. c4 {[%emt 0:00:16]} e6 {[%emt 0:02:00]} 3. Nc3 {[%emt 0:01:11]} d5 {[%emt 0:01:27]} 4. cxd5 {[%emt 0:00:22]} exd5 {[%emt 0:00:36]} 5. Bg5 {[%emt 0:00:06]} Be7 {[%emt 0:02:03]} 6. e3 {[%emt 0:00:11]} O-O {[%emt 0:02:03]} 7. Bd3 {[%emt 0:00:06]} h6 {[%emt 0:03:20]} 8. Bf4 {[%emt 0:07:14]} c6 {[%emt 0:07:05]} 9. h3 {[%emt 0:00:34]} Be6 {[%emt 0:06:42]} 10. Nge2 {[%emt 0:02:12]} Nbd7 {[%emt 0:02:48]} 11. O-O {[%emt 0:02:56]} a5 {[%emt 0:04:43]} 12. Qc2 {[%emt 0:01:00]} Re8 {[%emt 0:03:06]} 13. Rad1 {[%emt 0:00:54]} Bf8 {[%emt 0:03:06]} 14. f3 {[%emt 0:07:43]} Nb6 {[%emt 0:12:42]} 15. Bg3 {[%emt 0:06:09]} c5 {[%emt 0:05:16]} 16. Qd2 {[%emt 0:13:00]} Rc8 {[%emt 0:08:26]} 17. Bh4 {[%emt 0:02:19]} Nbd7 {[%emt 0:06:25]} 18. Bb5 {[%emt 0:00:54]} Be7 {[%emt 0:01:41]} 19. Bf2 {[%emt 0:01:17]} c4 {[%emt 0:04:07]} 20. e4 {[%emt 0:04:15]} Rf8 {[%emt 0:02:11]} 21. Ba4 {[%emt 0:02:44]} Nb6 {[%emt 0:04:20]} 22. Bc2 {[%emt 0:00:10]} Nh5 {[%emt 0:04:35]} 23. e5 {[%emt 0:01:57]} g6 {[%emt 0:07:05]} 24. Be3 {[%emt 0:00:24]} Qd7 {[%emt 0:03:12]} 25. Bxh6 {[%emt 0:02:02]} Ng7 {[%emt 0:00:27]} 26. g4 {[%emt 0:02:01]} Kh7 {[%emt 0:00:37]} 27. Bg5 {[%emt 0:01:17]} Rh8 {[%emt 0:00:43]} 28. Kg2 {[%emt 0:01:07]} Kg8 {[%emt 0:00:37]} 29. Rh1 {[%emt 0:01:51]} Qd8 {[%emt 0:00:42]} 30. Bxe7 {[%emt 0:00:39]} Qxe7 {[%emt 0:00:06]} 31. Nf4 {[%emt 0:00:20]} Qh4 {[%emt 0:01:15]} 32. Qf2 {[%emt 0:04:28]} Qg5 {[%emt 0:00:50]} 33. Qg3 {[%emt 0:00:13]} Rh4 {[%emt 0:00:32]} 34. Kf2 {[%emt 0:01:07]} Rh8 {[%emt 0:00:56]} 35. h4 {[%emt 0:00:24]} Qe7 {[%emt 0:00:36]} 36. a3 {[%emt 0:01:05]} Qd7 {[%emt 0:00:31]} 37. Rdg1 {[%emt 0:03:18]} Na8 {[%emt 0:00:20]} 38. Ba4 {[%emt 0:01:07]} Qd8 {[%emt 0:00:07]} 39. h5 {[%emt 0:02:02]} g5 {[%emt 0:00:51]} 40. h6 {[%emt 0:01:40]} Ne8 {[%emt 0:00:44]} 41. Bxe8 {[%emt 0:12:47]} Qxe8 {[%emt 0:00:29]} 42. Nh5 {[%emt 0:01:11]} Qd8 {[%emt 0:00:16]} 43. Nf6+ {[%emt 0:00:05]} Kf8 {[%emt 0:00:04]} 44. Kg2 {[%emt 0:02:22]} Nc7 {[%emt 0:00:34]} 45. f4 {[%emt 0:00:32]} gxf4 {[%emt 0:00:44]} 46. Qxf4 {[%emt 0:00:07]} Ne8 {[%emt 0:00:10]} 47. g5 {[%emt 0:02:05]} Qb6 {[%emt 0:00:52]} 48. Nd1 {[%emt 0:03:15]} Ke7 {[%emt 0:00:27]} 49. Rf1 {[%emt 0:00:44]} Nxf6 {[%emt 0:00:28]} 50. exf6+ {[%emt 0:00:29]} Kd7 {[%emt 0:00:09]} 51. Rf3 {[%emt 0:01:32]} Rcg8 {[%emt 0:00:22]} 52. Rg3 {[%emt 0:00:11]} Rg6 {[%emt 0:00:18]} 53. Re1 {[%emt 0:00:12]} Rhg8 {[%emt 0:00:26]} 54. Re5 {[%emt 0:00:09]} Qb5 {[%emt 0:00:24]} 55. Qf2 {[%emt 0:00:14]} Qb6 {[%emt 0:01:49]} 56. Nc3 {[%emt 0:00:15]} Kd6 {[%emt 0:00:21]} 57. Qd2 {[%emt 0:02:36]} Kd7 {[%emt 0:00:44]} 58. Ne2 {[%emt 0:00:12]} Rf8 {[%emt 0:00:29]} 59. Nf4 {[%emt 0:00:27]} Rgg8 {[%emt 0:00:21]} 60. Qf2 {[%emt 0:01:24]} Rh8 {[%emt 0:00:27]} 61. g6 {[%emt 0:01:00]} Rxh6 {[%emt 0:00:36]} 62. g7 {[%emt 0:00:15]} Rg8 {[%emt 0:00:34]} 63. Nxe6 {[%emt 0:00:09]} 1-0

[Event "Belt Road Women 2019"]
[Site "Shaoxing"]
[Date "2019.07.12"]
[Round "5.7"]
[White "Harika, Dronavalli"]
[Black "Li, Xueyi"]
[Result "1/2-1/2"]
[ECO "B11"]
[WhiteElo "2492"]
[BlackElo "2330"]
[Annotator "RC"]
[PlyCount "53"]
[EventDate "2019.07.08"]
[EventType "swiss"]
[EventCountry "CHN"]
[SourceTitle "playchess.com"]
[Source "ChessBase"]
[SourceQuality "1"]
[TimeControl "5400+30"]

1. e4 {[%emt 0:00:00]} c6 {[%emt 0:00:00]} 2. Nc3 {[%emt 0:00:09]} d5 {[%emt 0:00:00]} 3. Nf3 {[%emt 0:00:08]} Nf6 {[%emt 0:00:07]} 4. e5 {[%emt 0:00:32]} Ne4 {[%emt 0:00:11]} 5. Ne2 {[%emt 0:00:32]} Qb6 {[%emt 0:00:09]} 6. d4 {[%emt 0:00:12]} e6 {[%emt 0:00:08]} 7. Ng3 {[%emt 0:00:58]} c5 {[%emt 0:00:34]} 8. Bd3 {[%emt 0:00:16]} Nxg3 {[%emt 0:01:00]} 9. fxg3 {[%emt 0:00:57]} h6 {[%emt 0:08:18]} 10. O-O {[%emt 0:02:48]} Nc6 11. a3 {[%emt 0:04:59]} Bd7 {[%emt 0:03:00]} 12. Kh1 {[%emt 0:02:48]} cxd4 {[%emt 0:12:25]} 13. b4 {[%emt 0:02:38]} a6 {[%emt 0:02:37]} 14. g4 {[%emt 0:04:07]} g6 {[%emt 0:02:56]} 15. Qe2 {[%emt 0:20:25]} Bg7 {[%emt 0:01:40]} 16. Bf4 {[%emt 0:01:24]} Nd8 {[%emt 0:09:40]} 17. Rfd1 {[%emt 0:00:30]} Bb5 {[%emt 0:00:30]} 18. Bxb5+ {[%emt 0:00:30]} Qxb5 {[%emt 0:00:30]} 19. Qxb5+ {[%emt 0:00:30]} axb5 {[%emt 0:00:30]} 20. Nxd4 {[%emt 0:08:17]} Nc6 {[%emt 0:05:00]} 21. Nxb5 {[%emt 0:00:48]} O-O {[%emt 0:01:01]} 22. Re1 {[%emt 0:00:30]} Rfc8 {[%emt 0:00:30]} 23. Rac1 {[%emt 0:00:30]} Na7 {[%emt 0:00:30]} 24. Nd6 {[%emt 0:00:30]} Rc3 {[%emt 0:00:30]} 25. a4 {[%emt 0:00:30]} Nc6 {[%emt 0:00:30]} 26. a5 {[%emt 0:00:30]} g5 {[%emt 0:00:30]} 27. Bd2 {[%emt 0:19:35]} 1/2-1/2

[Event "Belt Road Women 2019"]
[Site "Shaoxing"]
[Date "2019.07.12"]
[Round "5.8"]
[White "Soumya, Swaminathan"]
[Black "Girya, Olga"]
[Result "0-1"]
[ECO "B15"]
[WhiteElo "2402"]
[BlackElo "2457"]
[Annotator "RC"]
[PlyCount "80"]
[EventDate "2019.07.08"]
[EventType "swiss"]
[EventCountry "CHN"]
[SourceTitle "playchess.com"]
[Source "ChessBase"]
[SourceQuality "1"]
[TimeControl "5400+30"]

1. e4 {[%emt 0:00:00]} c6 {[%emt 0:00:12]} 2. Nf3 {[%emt 0:00:07]} d5 {[%emt 0:00:30]} 3. Nc3 {[%emt 0:00:05]} dxe4 {[%emt 0:01:43]} 4. Nxe4 {[%emt 0:00:07]} Nf6 {[%emt 0:00:05]} 5. Nxf6+ {[%emt 0:05:27]} exf6 {[%emt 0:00:10]} 6. d4 {[%emt 0:00:18]} Bd6 {[%emt 0:00:08]} 7. h3 {[%emt 0:04:09]} O-O {[%emt 0:00:37]} 8. Be2 {[%emt 0:00:17]} Re8 {[%emt 0:02:56]} 9. O-O {[%emt 0:03:34]} Nd7 {[%emt 0:00:04]} 10. Be3 {[%emt 0:01:33]} Nf8 {[%emt 0:02:19]} 11. c4 {[%emt 0:05:31]} Ng6 {[%emt 0:02:37]} 12. Re1 {[%emt 0:00:59]} Be6 {[%emt 0:08:15]} 13. Qd2 {[%emt 0:11:13]} Qd7 {[%emt 0:03:29]} 14. Bf1 {[%emt 0:00:05]} Rad8 {[%emt 0:00:40]} 15. Rad1 {[%emt 0:02:41]} Bb8 {[%emt 0:07:37]} 16. Qc1 {[%emt 0:20:06]} Qc7 {[%emt 0:02:05]} 17. Bd3 {[%emt 0:00:14]} Qc8 {[%emt 0:05:00]} 18. Bf1 {[%emt 0:01:36]} Qc7 {[%emt 0:01:39]} 19. Bd3 {[%emt 0:00:05]} Nf4 {[%emt 0:15:32]} 20. Bxf4 {[%emt 0:03:43]} Qxf4 {[%emt 0:01:49]} 21. Qxf4 {[%emt 0:00:20]} Bxf4 {[%emt 0:00:02]} 22. b4 {[%emt 0:04:03]} Kf8 {[%emt 0:01:29]} 23. a4 {[%emt 0:03:03]} h5 {[%emt 0:03:29]} 24. Re4 {[%emt 0:20:37]} g5 {[%emt 0:05:55]} 25. Rde1 {[%emt 0:03:06]} f5 {[%emt 0:07:15]} 26. Rxf4 {[%emt 0:04:52]} gxf4 {[%emt 0:00:05]} 27. Rb1 {[%emt 0:01:22]} Kg7 {[%emt 0:05:12]} 28. b5 {[%emt 0:01:19]} Kf6 {[%emt 0:01:36]} 29. a5 {[%emt 0:01:14]} Re7 {[%emt 0:04:20]} 30. Bf1 {[%emt 0:01:02]} Rc7 {[%emt 0:02:37]} 31. bxc6 {[%emt 0:01:07]} bxc6 {[%emt 0:00:13]} 32. Bd3 {[%emt 0:01:32]} c5 {[%emt 0:04:39]} 33. d5 {[%emt 0:00:06]} Bc8 {[%emt 0:00:03]} 34. Rb8 {[%emt 0:00:35]} Rb7 {[%emt 0:00:31]} 35. Ra8 {[%emt 0:00:04]} Rbd7 {[%emt 0:00:58]} 36. Nh4 {[%emt 0:00:53]} Ba6 {[%emt 0:00:10]} 37. Rxd8 {[%emt 0:00:52]} Rxd8 {[%emt 0:00:01]} 38. Nxf5 {[%emt 0:00:26]} Bxc4 {[%emt 0:00:14]} 39. Bxc4 {[%emt 0:00:04]} Kxf5 {[%emt 0:00:04]} 40. f3 {[%emt 0:00:22]} Ke5 {[%emt 0:00:14]} 0-1